[Event "FIDE World Rapid Chess Championship 2021"]
[White "Gelfand, Boris"]
[Black "Babazada, Khazar"]
[WhiteFideId "2805677"]
[BlackFideId "13413554"]
[WhiteElo "2648"]
[BlackElo "2170"]
[Result "1/2-1/2"]
[Round "11"]
[TimeControl "900+10"]
[Date "2021.12.28"]
[WhiteClock "0:00:53"]
[BlackClock "0:01:19"]

1. Nf3 {[%clk 0:15:00]}  g6 {[%clk 0:15:00]} 2. e4 {[%clk 0:15:00]}  Bg7 {[%clk 0:15:00]} 3. d4 {[%clk 0:15:00]}  d6 {[%clk 0:15:00]} 4. c4 {[%clk 0:15:00]}  Nf6 {[%clk 0:15:00]} 5. Nc3 {[%clk 0:15:00]}  O-O {[%clk 0:15:00]} 6. Be2 {[%clk 0:15:00]}  Nbd7 {[%clk 0:15:00]} 7. O-O {[%clk 0:15:00]}  e5 {[%clk 0:15:00]} 8. Be3 {[%clk 0:15:00]}  c6 {[%clk 0:15:08]} 9. d5 {[%clk 0:15:54]}  Qe7 {[%clk 0:15:08]} 10. b4 {[%clk 0:15:54]}  c5 {[%clk 0:13:47]} 11. a3 {[%clk 0:14:58]}  Nh5 {[%clk 0:13:47]} 12. g3 {[%clk 0:14:58]}  b6 {[%clk 0:13:47]} 13. Bg5 {[%clk 0:13:20]}  Bf6 {[%clk 0:13:53]} 14. Bd2 {[%clk 0:13:20]}  Bg7 {[%clk 0:11:35]} 15. Rb1 {[%clk 0:12:35]}  h6 {[%clk 0:10:59]} 16. Re1 {[%clk 0:11:09]}  Nhf6 {[%clk 0:08:34]} 17. Qc1 {[%clk 0:09:12]}  Kh7 {[%clk 0:06:58]} 18. Nh4 {[%clk 0:09:12]}  Ng8 {[%clk 0:07:01]} 19. Qc2 {[%clk 0:07:17]}  h5 {[%clk 0:07:01]} 20. Nf3 {[%clk 0:07:23]}  Bh6 {[%clk 0:04:53]} 21. Qc1 {[%clk 0:07:23]}  Bxd2 {[%clk 0:04:53]} 22. Qxd2 {[%clk 0:07:23]}  Nh6 {[%clk 0:04:53]} 23. Ng5+ {[%clk 0:07:23]}  Kg7 {[%clk 0:04:53]} 24. Rf1 {[%clk 0:07:23]}  Re8 {[%clk 0:04:22]} 25. Nb5 {[%clk 0:04:47]}  Nf8 {[%clk 0:04:22]} 26. bxc5 {[%clk 0:04:47]}  bxc5 {[%clk 0:04:22]} 27. h4 {[%clk 0:04:47]}  f6 {[%clk 0:04:22]} 28. Nf3 {[%clk 0:04:47]}  Bh3 {[%clk 0:04:22]} 29. Rfe1 {[%clk 0:03:48]}  a6 {[%clk 0:04:03]} 30. Nc3 {[%clk 0:03:48]}  Qc7 {[%clk 0:04:03]} 31. Rb3 {[%clk 0:03:48]}  Reb8 {[%clk 0:04:03]} 32. Reb1 {[%clk 0:03:48]}  Rxb3 {[%clk 0:04:03]} 33. Rxb3 {[%clk 0:03:48]}  Rb8 {[%clk 0:04:03]} 34. Qb2 {[%clk 0:03:48]}  Rxb3 {[%clk 0:04:03]} 35. Qxb3 {[%clk 0:03:48]}  Bd7 {[%clk 0:04:03]} 36. Qb2 {[%clk 0:03:48]}  Nf7 {[%clk 0:03:29]} 37. Bd1 {[%clk 0:04:04]}  Nd8 {[%clk 0:03:29]} 38. Ba4 {[%clk 0:04:04]}  Bxa4 {[%clk 0:03:29]} 39. Nxa4 {[%clk 0:04:04]}  Nd7 {[%clk 0:03:29]} 40. Nd2 {[%clk 0:04:04]}  Qa5 {[%clk 0:03:29]} 41. Nc3 {[%clk 0:04:04]}  Kf7 {[%clk 0:02:40]} 42. Kg2 {[%clk 0:03:27]}  Ke7 {[%clk 0:02:40]} 43. Nf1 {[%clk 0:03:27]}  Qb6 {[%clk 0:02:40]} 44. Qc2 {[%clk 0:03:27]}  Qa5 {[%clk 0:02:40]} 45. Qc1 {[%clk 0:02:20]}  Nf7 {[%clk 0:02:02]} 46. Ne3 {[%clk 0:02:20]}  Qb6 {[%clk 0:02:02]} 47. Qc2 {[%clk 0:02:20]}  Qa5 {[%clk 0:02:02]} 48. Qb3 {[%clk 0:02:20]}  Qb6 {[%clk 0:02:02]} 49. Qxb6 {[%clk 0:02:20]}  Nxb6 {[%clk 0:02:02]} 50. Kf1 {[%clk 0:02:20]}  Nh6 {[%clk 0:02:02]} 51. Ke2 {[%clk 0:02:20]}  f5 {[%clk 0:02:02]} 52. Kd3 {[%clk 0:02:20]}  Kf6 {[%clk 0:02:02]} 53. a4 {[%clk 0:01:32]}  f4 {[%clk 0:02:14]} 54. a5 {[%clk 0:01:32]}  Nd7 {[%clk 0:02:14]} 55. Nc2 {[%clk 0:01:32]}  g5 {[%clk 0:02:14]} 56. Na4 {[%clk 0:01:32]}  Nf7 {[%clk 0:02:14]} 57. Nb6 {[%clk 0:01:32]}  gxh4 {[%clk 0:01:19]} 58. gxh4 {[%clk 0:00:53]}  Ke7 {[%clk 0:01:19]} 59. Nxd7 {[%clk 0:00:53]} 1/2-1/2


[Site "http://www.Chess.com"]

[Event "FIDE World Rapid Chess Championship 2021"]
[White "Wojtaszek, Radoslaw"]
[Black "Bluebaum, Matthias"]
[WhiteFideId "1118358"]
[BlackFideId "24651516"]
[WhiteElo "2743"]
[BlackElo "2575"]
[Result "0-1"]
[Round "11"]
[TimeControl "900+10"]
[Date "2021.12.28"]
[WhiteClock "0:00:37"]
[BlackClock "0:01:12"]

1. c4 {[%clk 0:15:00]}  e6 {[%clk 0:15:00]} 2. Nc3 {[%clk 0:15:00]}  d5 {[%clk 0:15:00]} 3. d4 {[%clk 0:15:00]}  Nf6 {[%clk 0:15:00]} 4. cxd5 {[%clk 0:15:00]}  exd5 {[%clk 0:15:00]} 5. Bg5 {[%clk 0:15:00]}  c6 {[%clk 0:15:00]} 6. e3 {[%clk 0:15:00]}  h6 {[%clk 0:15:00]} 7. Bh4 {[%clk 0:15:00]}  Be7 {[%clk 0:15:00]} 8. Bd3 {[%clk 0:15:00]}  O-O {[%clk 0:15:00]} 9. Qc2 {[%clk 0:15:00]}  Re8 {[%clk 0:15:00]} 10. Nge2 {[%clk 0:15:00]}  a5 {[%clk 0:15:00]} 11. O-O {[%clk 0:15:41]}  Na6 {[%clk 0:16:57]} 12. a3 {[%clk 0:15:41]}  Nc7 {[%clk 0:16:57]} 13. f3 {[%clk 0:15:41]}  c5 {[%clk 0:16:57]} 14. a4 {[%clk 0:15:41]}  c4 {[%clk 0:16:57]} 15. Bf5 {[%clk 0:15:12]}  Na6 {[%clk 0:16:57]} 16. Bxc8 {[%clk 0:15:12]}  Nb4 {[%clk 0:13:40]} 17. Qd2 {[%clk 0:14:03]}  Qxc8 {[%clk 0:13:37]} 18. Nb5 {[%clk 0:12:10]}  Qd7 {[%clk 0:13:04]} 19. Nec3 {[%clk 0:12:10]}  Rad8 {[%clk 0:13:04]} 20. Rad1 {[%clk 0:12:10]}  Qc6 {[%clk 0:10:41]} 21. Qe2 {[%clk 0:12:23]}  Nd3 {[%clk 0:10:41]} 22. b3 {[%clk 0:10:50]}  Bb4 {[%clk 0:08:25]} 23. bxc4 {[%clk 0:10:23]}  dxc4 {[%clk 0:08:25]} 24. Qd2 {[%clk 0:10:23]}  g5 {[%clk 0:07:19]} 25. Bf2 {[%clk 0:08:52]}  Nd5 {[%clk 0:07:19]} 26. e4 {[%clk 0:08:52]}  Nxc3 {[%clk 0:07:19]} 27. Nxc3 {[%clk 0:08:52]}  Qf6 {[%clk 0:07:19]} 28. Be3 {[%clk 0:08:25]}  Rxd4 {[%clk 0:06:12]} 29. Qc2 {[%clk 0:08:25]}  Rdd8 {[%clk 0:06:12]} 30. Nb5 {[%clk 0:08:25]}  Rc8 {[%clk 0:04:50]} 31. Nd4 {[%clk 0:04:10]}  Bc5 {[%clk 0:04:50]} 32. Nf5 {[%clk 0:03:07]}  Bxe3+ {[%clk 0:03:40]} 33. Nxe3 {[%clk 0:03:07]}  Qb6 {[%clk 0:03:40]} 34. Qe2 {[%clk 0:01:36]}  f5 {[%clk 0:02:23]} 35. Kh1 {[%clk 0:01:36]}  fxe4 {[%clk 0:02:23]} 36. Rb1 {[%clk 0:01:36]}  Qe6 {[%clk 0:02:23]} 37. fxe4 {[%clk 0:01:36]}  Nf4 {[%clk 0:02:23]} 38. Qf2 {[%clk 0:01:29]}  Qxe4 {[%clk 0:01:04]} 39. Ng4 {[%clk 0:01:29]}  Qe6 {[%clk 0:01:04]} 40. h3 {[%clk 0:01:29]}  c3 {[%clk 0:01:04]} 41. Qd4 {[%clk 0:01:29]}  Re7 {[%clk 0:01:04]} 42. Rb6 {[%clk 0:01:29]}  Rc6 {[%clk 0:01:04]} 43. Rb5 {[%clk 0:00:43]}  c2 {[%clk 0:00:56]} 44. Re5 {[%clk 0:00:43]}  c1=Q {[%clk 0:00:56]} 45. Rxc1 {[%clk 0:00:43]}  Rxc1+ {[%clk 0:00:56]} 46. Kh2 {[%clk 0:00:43]}  Rd7 {[%clk 0:00:56]} 47. Qe3 {[%clk 0:00:43]}  Rc2 {[%clk 0:00:56]} 48. Rxe6 {[%clk 0:00:43]}  Rxg2+ {[%clk 0:00:56]} 49. Kh1 {[%clk 0:00:43]}  Rd1+ {[%clk 0:00:56]} 50. Qe1 {[%clk 0:00:43]}  Rxe1+ {[%clk 0:00:56]} 51. Rxe1 {[%clk 0:00:43]}  Rg3 {[%clk 0:00:56]} 52. Nxh6+ {[%clk 0:00:43]}  Kh7 {[%clk 0:00:56]} 53. Nf5 {[%clk 0:00:43]}  Rxh3+ {[%clk 0:00:56]} 54. Kg1 {[%clk 0:00:43]}  Kg6 {[%clk 0:01:12]} 55. Nd6 {[%clk 0:00:37]}  Rb3 {[%clk 0:01:12]} 56. Re5 {[%clk 0:00:37]}  g4 {[%clk 0:01:12]} 57. Re4 {[%clk 0:00:37]}  Rb4 {[%clk 0:01:12]} 58. Nc4 {[%clk 0:00:37]}  Kg5 {[%clk 0:01:12]} 59. Kf2 {[%clk 0:00:37]}  Rxa4 {[%clk 0:01:12]} 60. Re5+ {[%clk 0:00:37]}  Kh4 {[%clk 0:01:12]} 61. Ne3 {[%clk 0:00:37]}  Nd3+ {[%clk 0:01:12]} 0-1


[Site "http://www.Chess.com"]

[Event "FIDE World Rapid Chess Championship 2021"]
[White "Artemiev, Vladislav"]
[Black "Shoker, Samy"]
[WhiteFideId "24101605"]
[BlackFideId "627143"]
[WhiteElo "2714"]
[BlackElo "2550"]
[Result "1-0"]
[Round "11"]
[TimeControl "900+10"]
[Date "2021.12.28"]
[WhiteClock "0:00:12"]
[BlackClock "0:00:31"]

1. Nf3 {[%clk 0:15:00]}  g6 {[%clk 0:15:00]} 2. g3 {[%clk 0:15:00]}  Bg7 {[%clk 0:15:00]} 3. d4 {[%clk 0:15:00]}  Nf6 {[%clk 0:15:00]} 4. Bg2 {[%clk 0:15:00]}  O-O {[%clk 0:15:00]} 5. O-O {[%clk 0:15:00]}  d6 {[%clk 0:15:00]} 6. Nc3 {[%clk 0:15:00]}  Nc6 {[%clk 0:15:13]} 7. d5 {[%clk 0:15:26]}  Na5 {[%clk 0:15:13]} 8. Rb1 {[%clk 0:15:26]}  c5 {[%clk 0:15:13]} 9. e4 {[%clk 0:15:26]}  Bg4 {[%clk 0:15:13]} 10. h3 {[%clk 0:14:38]}  Bxf3 {[%clk 0:14:08]} 11. Qxf3 {[%clk 0:14:38]}  a6 {[%clk 0:14:08]} 12. a4 {[%clk 0:14:38]}  Rb8 {[%clk 0:14:08]} 13. Qe2 {[%clk 0:14:38]}  Nd7 {[%clk 0:14:08]} 14. Bd2 {[%clk 0:14:38]}  c4 {[%clk 0:13:35]} 15. Ra1 {[%clk 0:13:59]}  Qc7 {[%clk 0:11:21]} 16. Rfb1 {[%clk 0:07:47]}  Rfc8 {[%clk 0:11:21]} 17. Qe1 {[%clk 0:06:55]}  b6 {[%clk 0:09:14]} 18. Ne2 {[%clk 0:06:55]}  Nc5 {[%clk 0:09:08]} 19. Bc3 {[%clk 0:04:38]}  Bxc3 {[%clk 0:08:12]} 20. Qxc3 {[%clk 0:04:11]}  Qd7 {[%clk 0:08:12]} 21. Qf3 {[%clk 0:04:18]}  Rf8 {[%clk 0:05:52]} 22. b4 {[%clk 0:01:38]}  cxb3 {[%clk 0:04:41]} 23. cxb3 {[%clk 0:01:38]}  Nab7 {[%clk 0:02:25]} 24. Qe3 {[%clk 0:00:51]}  a5 {[%clk 0:02:20]} 25. Nd4 {[%clk 0:00:51]}  e5 {[%clk 0:02:20]} 26. dxe6 {[%clk 0:00:51]}  fxe6 {[%clk 0:02:20]} 27. e5 {[%clk 0:00:51]}  d5 {[%clk 0:02:20]} 28. Bf1 {[%clk 0:00:51]}  Ne4 {[%clk 0:02:20]} 29. Ra2 {[%clk 0:00:51]}  Nbc5 {[%clk 0:02:08]} 30. Kh2 {[%clk 0:00:22]}  Nb7 {[%clk 0:02:08]} 31. h4 {[%clk 0:00:22]}  Rbc8 {[%clk 0:02:08]} 32. Bh3 {[%clk 0:00:22]}  Nd8 {[%clk 0:02:08]} 33. Nb5 {[%clk 0:00:22]}  Qg7 {[%clk 0:00:29]} 34. f3 {[%clk 0:00:30]}  Nc5 {[%clk 0:00:29]} 35. Nd4 {[%clk 0:00:30]}  Re8 {[%clk 0:00:29]} 36. b4 {[%clk 0:00:30]}  axb4 {[%clk 0:00:29]} 37. Rxb4 {[%clk 0:00:30]}  Nc6 {[%clk 0:00:29]} 38. Rxb6 {[%clk 0:00:30]}  Nxe5 {[%clk 0:00:29]} 39. Bxe6+ {[%clk 0:00:30]}  Kh8 {[%clk 0:00:29]} 40. Bxc8 {[%clk 0:00:30]}  Rxc8 {[%clk 0:00:29]} 41. Ne6 {[%clk 0:00:30]}  Qf6 {[%clk 0:00:29]} 42. Qxc5 {[%clk 0:00:30]}  Nxf3+ {[%clk 0:00:31]} 43. Kh1 {[%clk 0:00:12]}  Re8 {[%clk 0:00:31]} 44. Qe3 {[%clk 0:00:12]}  Qf5 {[%clk 0:00:31]} 45. Kg2 {[%clk 0:00:12]}  Ne5 {[%clk 0:00:31]} 46. Qf4 {[%clk 0:00:12]}  Nc4 {[%clk 0:00:31]} 47. Qxf5 {[%clk 0:00:12]}  gxf5 {[%clk 0:00:31]} 48. Ra6 {[%clk 0:00:12]} 1-0


[Site "http://www.Chess.com"]

[Event "FIDE World Rapid Chess Championship 2021"]
[White "Paravyan, David"]
[Black "Piorun, Kacper"]
[WhiteFideId "4194985"]
[BlackFideId "1130420"]
[WhiteElo "2671"]
[BlackElo "2547"]
[Result "1-0"]
[Round "11"]
[TimeControl "900+10"]
[Date "2021.12.28"]
[WhiteClock "0:05:23"]
[BlackClock "0:00:11"]

1. e4 {[%clk 0:15:00]}  e5 {[%clk 0:15:00]} 2. Nf3 {[%clk 0:15:00]}  Nc6 {[%clk 0:15:00]} 3. Nc3 {[%clk 0:15:00]}  Nf6 {[%clk 0:15:00]} 4. d4 {[%clk 0:15:00]}  exd4 {[%clk 0:15:00]} 5. Nxd4 {[%clk 0:15:00]}  Bb4 {[%clk 0:15:00]} 6. Nxc6 {[%clk 0:15:00]}  bxc6 {[%clk 0:15:00]} 7. Bd3 {[%clk 0:15:00]}  d5 {[%clk 0:15:00]} 8. exd5 {[%clk 0:15:00]}  cxd5 {[%clk 0:15:00]} 9. O-O {[%clk 0:15:00]}  O-O {[%clk 0:15:00]} 10. Bg5 {[%clk 0:15:00]}  c6 {[%clk 0:15:55]} 11. Qf3 {[%clk 0:17:07]}  h6 {[%clk 0:15:55]} 12. Bxf6 {[%clk 0:17:07]}  Qxf6 {[%clk 0:15:55]} 13. Qxf6 {[%clk 0:17:07]}  gxf6 {[%clk 0:15:55]} 14. Ne2 {[%clk 0:17:07]}  Rb8 {[%clk 0:15:55]} 15. b3 {[%clk 0:17:07]}  Bd6 {[%clk 0:15:55]} 16. Rad1 {[%clk 0:17:07]}  Be6 {[%clk 0:15:55]} 17. Nd4 {[%clk 0:17:07]}  c5 {[%clk 0:14:10]} 18. Nf5 {[%clk 0:16:58]}  Bxf5 {[%clk 0:14:10]} 19. Bxf5 {[%clk 0:16:58]}  Rfd8 {[%clk 0:14:10]} 20. g3 {[%clk 0:17:14]}  Be5 {[%clk 0:12:22]} 21. Rd2 {[%clk 0:17:14]}  Bc3 {[%clk 0:12:22]} 22. Rd3 {[%clk 0:17:14]}  d4 {[%clk 0:12:22]} 23. Rfd1 {[%clk 0:17:14]}  Re8 {[%clk 0:11:54]} 24. Rf3 {[%clk 0:15:02]}  Re5 {[%clk 0:11:54]} 25. Bd3 {[%clk 0:15:02]}  Kg7 {[%clk 0:11:54]} 26. Kg2 {[%clk 0:15:02]}  Rbe8 {[%clk 0:11:54]} 27. Rf4 {[%clk 0:15:02]}  a5 {[%clk 0:11:54]} 28. a4 {[%clk 0:15:27]}  R8e7 {[%clk 0:10:32]} 29. Rg4+ {[%clk 0:15:27]}  Rg5 {[%clk 0:10:32]} 30. Rh4 {[%clk 0:15:27]}  Rge5 {[%clk 0:10:32]} 31. Rg4+ {[%clk 0:15:27]}  Rg5 {[%clk 0:10:32]} 32. Rf4 {[%clk 0:15:27]}  Rge5 {[%clk 0:10:32]} 33. Kf3 {[%clk 0:15:27]}  Bb4 {[%clk 0:10:32]} 34. Rh4 {[%clk 0:14:18]}  Bc3 {[%clk 0:10:15]} 35. Rf1 {[%clk 0:13:38]}  Bb4 {[%clk 0:09:46]} 36. Kg2 {[%clk 0:13:38]}  Bc3 {[%clk 0:08:49]} 37. f4 {[%clk 0:10:53]}  Re3 {[%clk 0:08:49]} 38. Rh5 {[%clk 0:10:53]}  Bb4 {[%clk 0:08:49]} 39. Rd5 {[%clk 0:10:53]}  Rc7 {[%clk 0:06:53]} 40. Kh3 {[%clk 0:11:07]}  Ree7 {[%clk 0:06:53]} 41. Bb5 {[%clk 0:11:07]}  Re3 {[%clk 0:05:13]} 42. Kg4 {[%clk 0:10:07]}  Rce7 {[%clk 0:05:13]} 43. Rf2 {[%clk 0:08:39]}  Re1 {[%clk 0:03:58]} 44. Bd3 {[%clk 0:08:39]}  R1e6 {[%clk 0:03:58]} 45. Bc4 {[%clk 0:08:39]}  Rb6 {[%clk 0:03:58]} 46. Rd8 {[%clk 0:07:41]}  Rbb7 {[%clk 0:03:01]} 47. Re2 {[%clk 0:07:41]}  Rxe2 {[%clk 0:03:01]} 48. Bxe2 {[%clk 0:07:41]}  Re7 {[%clk 0:03:01]} 49. Bc4 {[%clk 0:07:41]}  Kg6 {[%clk 0:01:55]} 50. Rg8+ {[%clk 0:07:44]}  Kh7 {[%clk 0:01:55]} 51. Rc8 {[%clk 0:07:44]}  Kg6 {[%clk 0:01:55]} 52. Bd3+ {[%clk 0:07:44]}  Kg7 {[%clk 0:01:55]} 53. Rc6 {[%clk 0:07:44]}  Rd7 {[%clk 0:01:55]} 54. Bc4 {[%clk 0:07:44]}  Kg6 {[%clk 0:01:55]} 55. Bd3+ {[%clk 0:07:44]}  Kg7 {[%clk 0:01:55]} 56. Be4 {[%clk 0:07:44]}  Re7 {[%clk 0:01:09]} 57. Kf5 {[%clk 0:07:50]}  Re6 {[%clk 0:01:09]} 58. Rc7 {[%clk 0:07:50]}  Rd6 {[%clk 0:01:09]} 59. Bd3 {[%clk 0:07:50]}  Rd5+ {[%clk 0:01:09]} 60. Ke4 {[%clk 0:07:50]}  Rd6 {[%clk 0:01:09]} 61. Bc4 {[%clk 0:07:50]}  f5+ {[%clk 0:01:09]} 62. Kxf5 {[%clk 0:07:50]}  Rf6+ {[%clk 0:01:09]} 63. Ke4 {[%clk 0:07:50]}  Kg6 {[%clk 0:01:09]} 64. Bd5 {[%clk 0:07:50]}  h5 {[%clk 0:01:09]} 65. Kf3 {[%clk 0:07:39]}  Kg7 {[%clk 0:00:39]} 66. h4 {[%clk 0:05:23]}  Kg6 {[%clk 0:00:11]} 67. Rd7 {[%clk 0:05:23]}  Bc3 {[%clk 0:00:11]} 68. Be4+ {[%clk 0:05:23]}  Kh6 {[%clk 0:00:11]} 69. Rd8 {[%clk 0:05:23]}  Rb6 {[%clk 0:00:11]} 70. Rc8 {[%clk 0:05:23]}  Bb4 {[%clk 0:00:11]} 71. Rh8+ {[%clk 0:05:23]}  Kg7 {[%clk 0:00:11]} 72. Rh7+ {[%clk 0:05:23]}  Kf8 {[%clk 0:00:11]} 73. Rxh5 {[%clk 0:05:23]} 1-0


[Site "http://www.Chess.com"]

[Event "FIDE World Rapid Chess Championship 2021"]
[White "Movsesian, Sergei"]
[Black "Nihal, Sarin"]
[WhiteFideId "310204"]
[BlackFideId "25092340"]
[WhiteElo "2667"]
[BlackElo "2500"]
[Result "0-1"]
[Round "11"]
[TimeControl "900+10"]
[Date "2021.12.28"]
[WhiteClock "0:00:11"]
[BlackClock "0:01:38"]

1. e4 {[%clk 0:15:00]}  e5 {[%clk 0:15:00]} 2. Nf3 {[%clk 0:15:00]}  Nc6 {[%clk 0:15:00]} 3. Bb5 {[%clk 0:15:00]}  a6 {[%clk 0:15:00]} 4. Ba4 {[%clk 0:15:00]}  Nf6 {[%clk 0:15:00]} 5. d3 {[%clk 0:15:00]}  d6 {[%clk 0:15:00]} 6. O-O {[%clk 0:15:00]}  g6 {[%clk 0:15:00]} 7. c4 {[%clk 0:15:00]}  Bg7 {[%clk 0:16:01]} 8. Nc3 {[%clk 0:15:33]}  O-O {[%clk 0:16:01]} 9. Bxc6 {[%clk 0:15:33]}  bxc6 {[%clk 0:16:01]} 10. d4 {[%clk 0:15:33]}  exd4 {[%clk 0:16:01]} 11. Nxd4 {[%clk 0:15:33]}  c5 {[%clk 0:16:01]} 12. Nde2 {[%clk 0:15:33]}  Rb8 {[%clk 0:16:01]} 13. Qc2 {[%clk 0:15:33]}  Ng4 {[%clk 0:16:01]} 14. b3 {[%clk 0:15:06]}  f5 {[%clk 0:15:27]} 15. Bb2 {[%clk 0:13:00]}  f4 {[%clk 0:14:52]} 16. h3 {[%clk 0:09:49]}  f3 {[%clk 0:14:52]} 17. hxg4 {[%clk 0:09:58]}  Bxg4 {[%clk 0:12:40]} 18. Ng3 {[%clk 0:09:58]}  Qh4 {[%clk 0:12:48]} 19. Rfd1 {[%clk 0:06:37]}  Bd4 {[%clk 0:11:30]} 20. Rxd4 {[%clk 0:03:26]}  cxd4 {[%clk 0:04:57]} 21. Nd5 {[%clk 0:03:26]}  fxg2 {[%clk 0:04:57]} 22. Qd3 {[%clk 0:03:26]}  Bf3 {[%clk 0:04:57]} 23. Ne7+ {[%clk 0:03:26]}  Qxe7 {[%clk 0:04:57]} 24. Qxd4 {[%clk 0:03:26]}  Kf7 {[%clk 0:04:28]} 25. Qg7+ {[%clk 0:02:31]}  Ke8 {[%clk 0:04:28]} 26. Qh6 {[%clk 0:02:31]}  Kd7 {[%clk 0:02:40]} 27. Re1 {[%clk 0:01:15]}  Rbe8 {[%clk 0:02:40]} 28. c5 {[%clk 0:01:15]}  dxc5 {[%clk 0:02:40]} 29. Re3 {[%clk 0:00:11]}  Qe6 {[%clk 0:01:38]} 30. Bg7 {[%clk 0:00:11]}  Rf7 {[%clk 0:01:38]} 31. e5 {[%clk 0:00:11]}  Kc8 {[%clk 0:01:38]} 32. Re1 {[%clk 0:00:11]}  Rxg7 {[%clk 0:01:38]} 0-1


[Site "http://www.Chess.com"]

[Event "FIDE World Rapid Chess Championship 2021"]
[White "Riazantsev, Alexander"]
[Black "Dudin, Gleb"]
[WhiteFideId "4125029"]
[BlackFideId "34184934"]
[WhiteElo "2632"]
[BlackElo "2247"]
[Result "1/2-1/2"]
[Round "11"]
[TimeControl "900+10"]
[Date "2021.12.28"]
[WhiteClock "0:00:45"]
[BlackClock "0:00:24"]

1. d4 {[%clk 0:15:00]}  d5 {[%clk 0:15:00]} 2. c4 {[%clk 0:15:00]}  c6 {[%clk 0:15:00]} 3. Nc3 {[%clk 0:15:00]}  Nf6 {[%clk 0:15:00]} 4. e3 {[%clk 0:15:00]}  e6 {[%clk 0:15:00]} 5. Bd3 {[%clk 0:15:00]}  Nbd7 {[%clk 0:15:00]} 6. b3 {[%clk 0:15:00]}  dxc4 {[%clk 0:15:25]} 7. bxc4 {[%clk 0:15:48]}  c5 {[%clk 0:15:25]} 8. Nf3 {[%clk 0:15:48]}  cxd4 {[%clk 0:15:25]} 9. exd4 {[%clk 0:15:48]}  Be7 {[%clk 0:12:42]} 10. O-O {[%clk 0:15:41]}  O-O {[%clk 0:12:42]} 11. Qe2 {[%clk 0:15:41]}  b6 {[%clk 0:12:03]} 12. Bb2 {[%clk 0:13:58]}  Bb7 {[%clk 0:12:03]} 13. Rad1 {[%clk 0:13:58]}  Re8 {[%clk 0:12:03]} 14. Ne5 {[%clk 0:13:58]}  Rc8 {[%clk 0:11:07]} 15. Rfe1 {[%clk 0:14:06]}  Bb4 {[%clk 0:08:55]} 16. a3 {[%clk 0:14:06]}  Ba5 {[%clk 0:07:55]} 17. Rf1 {[%clk 0:11:06]}  Qc7 {[%clk 0:07:55]} 18. Nb5 {[%clk 0:10:55]}  Qb8 {[%clk 0:06:01]} 19. Nxd7 {[%clk 0:08:49]}  Nxd7 {[%clk 0:06:02]} 20. c5 {[%clk 0:08:49]}  bxc5 {[%clk 0:06:10]} 21. dxc5 {[%clk 0:06:39]}  Rxc5 {[%clk 0:06:10]} 22. Nd6 {[%clk 0:06:48]}  Rd8 {[%clk 0:02:49]} 23. Qg4 {[%clk 0:04:55]}  Ne5 {[%clk 0:01:40]} 24. Qf4 {[%clk 0:02:46]}  f6 {[%clk 0:00:44]} 25. Bxe5 {[%clk 0:00:45]}  Rxe5 {[%clk 0:00:24]} 26. Nxb7 {[%clk 0:00:45]}  Qxb7 {[%clk 0:00:24]} 27. Qh4 {[%clk 0:00:45]}  h6 {[%clk 0:00:24]} 28. Bg6 {[%clk 0:00:45]}  Rxd1 {[%clk 0:00:24]} 29. Rxd1 {[%clk 0:00:45]}  Qd5 {[%clk 0:00:24]} 30. Qa4 {[%clk 0:00:45]}  Qxd1+ {[%clk 0:00:24]} 31. Qxd1 {[%clk 0:00:45]}  Re1+ {[%clk 0:00:24]} 32. Qxe1 {[%clk 0:00:45]}  Bxe1 {[%clk 0:00:24]} 33. Kf1 {[%clk 0:00:45]}  Ba5 {[%clk 0:00:24]} 1/2-1/2


[Site "http://www.Chess.com"]

[Event "FIDE World Rapid Chess Championship 2021"]
[White "Najer, Evgeniy"]
[Black "Anton Guijarro, David"]
[WhiteFideId "4118987"]
[BlackFideId "2285525"]
[WhiteElo "2565"]
[BlackElo "2627"]
[Result "0-1"]
[Round "11"]
[TimeControl "900+10"]
[Date "2021.12.28"]
[WhiteClock "0:00:40"]
[BlackClock "0:00:54"]

1. e4 {[%clk 0:15:00]}  c6 {[%clk 0:15:00]} 2. d4 {[%clk 0:15:00]}  d5 {[%clk 0:15:00]} 3. e5 {[%clk 0:15:00]}  Bf5 {[%clk 0:15:00]} 4. Nf3 {[%clk 0:15:00]}  e6 {[%clk 0:15:00]} 5. Be2 {[%clk 0:15:00]}  Nd7 {[%clk 0:15:00]} 6. O-O {[%clk 0:15:00]}  Ne7 {[%clk 0:15:00]} 7. c3 {[%clk 0:15:00]}  h6 {[%clk 0:15:07]} 8. a4 {[%clk 0:15:53]}  a5 {[%clk 0:15:07]} 9. Nbd2 {[%clk 0:15:53]}  Bh7 {[%clk 0:13:07]} 10. Nb3 {[%clk 0:15:26]}  Ng6 {[%clk 0:13:07]} 11. Bd3 {[%clk 0:15:26]}  Be7 {[%clk 0:13:07]} 12. Be3 {[%clk 0:15:26]}  O-O {[%clk 0:13:07]} 13. Ne1 {[%clk 0:14:59]}  b6 {[%clk 0:12:12]} 14. f4 {[%clk 0:14:59]}  Nh4 {[%clk 0:12:12]} 15. Bxh7+ {[%clk 0:14:07]}  Kxh7 {[%clk 0:11:01]} 16. Nd3 {[%clk 0:14:07]}  Qc8 {[%clk 0:11:01]} 17. Bf2 {[%clk 0:14:07]}  Ng6 {[%clk 0:10:52]} 18. Nbc1 {[%clk 0:11:45]}  c5 {[%clk 0:09:37]} 19. Qf3 {[%clk 0:07:13]}  c4 {[%clk 0:09:37]} 20. f5 {[%clk 0:07:13]}  exf5 {[%clk 0:09:37]} 21. Ne1 {[%clk 0:07:13]}  Qc6 {[%clk 0:08:19]} 22. Qxf5 {[%clk 0:06:04]}  Qe6 {[%clk 0:08:19]} 23. Bg3 {[%clk 0:06:04]}  Kg8 {[%clk 0:08:19]} 24. Nc2 {[%clk 0:06:21]}  Rab8 {[%clk 0:06:07]} 25. Qf3 {[%clk 0:06:00]}  f5 {[%clk 0:05:02]} 26. Ne2 {[%clk 0:06:00]}  Bg5 {[%clk 0:05:02]} 27. Bf4 {[%clk 0:06:00]}  b5 {[%clk 0:03:28]} 28. Ne3 {[%clk 0:03:58]}  bxa4 {[%clk 0:03:28]} 29. Qxd5 {[%clk 0:03:00]}  Qxd5 {[%clk 0:02:02]} 30. Nxd5 {[%clk 0:03:00]}  Rxb2 {[%clk 0:02:02]} 31. Rf2 {[%clk 0:03:00]}  Rxe2 {[%clk 0:02:02]} 32. Rxe2 {[%clk 0:03:00]}  Nxf4 {[%clk 0:02:02]} 33. Nxf4 {[%clk 0:03:00]}  Bxf4 {[%clk 0:02:02]} 34. Rxa4 {[%clk 0:03:00]}  Ra8 {[%clk 0:01:28]} 35. Rb2 {[%clk 0:02:32]}  Ra6 {[%clk 0:01:28]} 36. Rba2 {[%clk 0:00:55]}  Nb6 {[%clk 0:01:19]} 37. Rxa5 {[%clk 0:00:55]}  Rxa5 {[%clk 0:01:19]} 38. Rxa5 {[%clk 0:00:55]}  Bd2 {[%clk 0:01:19]} 39. Ra3 {[%clk 0:00:55]}  Nd5 {[%clk 0:01:19]} 40. e6 {[%clk 0:00:55]}  Bxc3 {[%clk 0:01:19]} 41. Ra8+ {[%clk 0:00:55]}  Kh7 {[%clk 0:01:19]} 42. Rd8 {[%clk 0:00:55]}  Bxd4+ {[%clk 0:01:19]} 43. Kf1 {[%clk 0:00:55]}  c3 {[%clk 0:01:19]} 44. Ke2 {[%clk 0:00:40]}  Nf4+ {[%clk 0:00:54]} 45. Kd1 {[%clk 0:00:40]}  Bf6 {[%clk 0:00:54]} 46. Rd6 {[%clk 0:00:40]}  Nxg2 {[%clk 0:00:54]} 47. Rd7 {[%clk 0:00:40]}  Kg6 {[%clk 0:00:54]} 48. Rd3 {[%clk 0:00:40]}  f4 {[%clk 0:00:54]} 0-1


[Site "http://www.Chess.com"]